fUSD/lending_fUSD_20250226
["ID","MTS","AMOUNT","RATE_DAILY","PERIOD"]
[354587642,1740583760538,-10000.0,0.0001499,2]
[354587643,1740583761424,-10000.0,0.0001499,2]
[354587644,1740583761717,-10000.0,0.0001499,2]
[354587645,1740583762047,-10000.0,0.0001499,2]
[354587646,1740583762595,-10000.0,0.0001499,2]
[354587647,1740583762900,-4658.23477785,0.0001499,2]
[354587648,1740583762924,-2465.4943592,0.00014999,2]
[354587649,1740583762946,-150.0,0.00014999,2]
[354587650,1740583762970,-500.0,0.00014999,2]
[354587651,1740583762993,-500.0,0.00014999,2]
[354587652,1740583763020,-500.0,0.00014999,2]
[354587653,1740583763042,-500.0,0.00014999,2]
[354587654,1740583763066,-500.0,0.00014999,2]
[354587655,1740583763095,-226.27086295,0.00014999,2]
[354587656,1740583763446,-339.10022686,0.00014999,2]
[354587657,1740583763470,-500.0,0.00014999,2]
[354587658,1740583763494,-9160.89977314,0.00015,2]
[354587659,1740583763969,-10000.0,0.00015,2]
[354587660,1740583764499,-10000.0,0.00015,2]
[354587661,1740583765044,-10000.0,0.00015,2]
[354587662,1740583768619,-10000.0,0.00015,2]
[354587663,1740583769102,-10000.0,0.00015,2]
[354587664,1740583769543,-10000.0,0.00015,2]
[354587665,1740583770010,-10000.0,0.00015,2]
[354587666,1740583770415,-10000.0,0.00015,2]
[354587667,1740583770728,-10000.0,0.00015,2]
[354587668,1740583771169,-10000.0,0.00015,2]
[354587669,1740583771829,-10000.0,0.00015,2]
[354587670,1740583771963,-10000.0,0.00015,2]
[354587671,1740583772299,-10000.0,0.00015,2]
[354587672,1740583772776,-10000.0,0.00015,2]
[354587673,1740583773206,-10000.0,0.00015,2]
[354587674,1740583773422,-10000.0,0.00015,2]
[354587675,1740583773836,-10000.0,0.00015,2]
[354587676,1740583774549,-10000.0,0.00015,2]
[354587677,1740583774675,-10000.0,0.00015,2]
[354587678,1740583775114,-10000.0,0.00015,2]
[354587679,1740583775539,-10000.0,0.00015,2]
[354587680,1740583775888,-10000.0,0.00015,2]
[354587681,1740583776372,-10000.0,0.00015,2]
[354587682,1740583776793,-10000.0,0.00015,2]
[354587683,1740583777272,-10000.0,0.00015,2]
[354587684,1740583777687,-10000.0,0.00015,2]
[354587685,1740583778131,-6776.0713075,0.0001499,2]
[354587686,1740583778159,-3223.9286925,0.00015,2]
[354587687,1740583808772,-150.0,0.00014999,2]
[354587688,1740583808798,-150.0,0.00015,2]
[354587689,1740583808826,-2202.0,0.00015,2]
[354587706,1740583832499,-568.86887887,0.000149,2]
[354587708,1740583832509,-507.08607303,0.0001499,2]
[354587711,1740583832522,-303.77392697,0.0001499,2]
[354587713,1740583832532,-810.86,0.0001499,2]
[354587715,1740583832542,-155.85666799,0.0001499,2]
[354587717,1740583832552,-255848.5759133,0.00015,2]
[354587719,1740583832562,-5912.0656056,0.00015,2]
[354587721,1740583832571,-340795.83576949,0.00015,2]
[354587723,1740583832583,-48780.42521204,0.00015,2]
[354587725,1740583832594,-840.0,0.00015,2]
[354587729,1740583832618,-9329.50000002,0.00015,2]
[354587738,1740583832693,-1897.63,0.00015,2]
[354587740,1740583832706,-1853.75,0.00015,2]
[354587742,1740583832718,-497.30201156,0.00015,2]
[354587744,1740583832731,-591.30757527,0.00015,2]
[354587747,1740583832746,-1886.19309499,0.00015,2]
[354587751,1740583832782,-599.81428692,0.00015,2]
[354587877,1740583838343,-5674.52886,0.00015,2]
[354587878,1740583838354,-374415.60428845,0.00015,2]
[354587879,1740583838440,-8878.83471483,0.00015,2]
[354587880,1740583838453,-13827.59302542,0.00015,2]
[354587881,1740583838680,-645.22437526,0.00015,2]
[354587882,1740583838775,-266.98,0.00015,2]
[354587915,1740583840607,-1228.07522963,0.00015,2]
[354587928,1740583841272,-394.480402,0.00015,2]
[354587929,1740583841300,-234941.805,0.00015,2]
[354587945,1740583843630,-1325.018748,0.00015,2]
[354587946,1740583843641,-107404.87359003,0.00015,2]
[354587947,1740583843653,-606589.47461876,0.00015,2]
[354587948,1740583843663,-250.0,0.00015512,2]
[354587949,1740583843673,-150.0,0.00015654,2]
[354587950,1740583843682,-167.92700848,0.00016024,2]
[354587951,1740583843692,-242.93267846,0.00016024,2]
[354587952,1740583843701,-500.0,0.00016122,2]
[354587953,1740583843712,-255.0,0.00016124,2]
[354587954,1740583843723,-150.0,0.00016499,2]
[354587955,1740583843732,-250.0,0.000165,2]
[354587956,1740583843741,-250.0,0.00017082,2]
[354587957,1740583843751,-2533.77260863,0.00017312,2]
[354587958,1740583843760,-394.0,0.00017339,2]
[354587959,1740583843769,-4029.78055866,0.00017349,2]
[354587960,1740583843782,-2533.77260863,0.00019725,2]
[354587961,1740583843793,-2252.6630704,0.00019798,2]
[354587962,1740583843804,-1777.11748826,0.00019798,2]
[354587963,1740583843814,-250.0,0.0001982,2]
[354587965,1740583843825,-5097.35857181,0.0002,2]
[354587967,1740583843834,-242.93267845,0.00021681,2]
[354587968,1740583843844,-202.07,0.00021918,2]
[354587969,1740583843854,-2533.77260863,0.00022137,2]
[354587970,1740583843864,-200.0,0.000222,2]
[354587971,1740583843874,-4029.78055866,0.00022247,2]
[354587972,1740583843884,-8698.02,0.00023128,2]
[354587973,1740583843894,-23548.36683653,0.00024,2]
[354587974,1740583843903,-779.76934383,0.0002402,2]
[354587975,1740583843913,-677.35305559,0.00024058,2]
[354587976,1740583843923,-324.24257761,0.00024073,2]
[354587978,1740583843933,-403.66443045,0.0002421,2]
[354587981,1740583843943,-3537.07538534,0.0002421,2]
[354587983,1740583843952,-45026.29858266,0.000245,2]
[354587985,1740583843964,-2533.77260863,0.00024549,2]
[354587986,1740583843973,-4029.78055866,0.00024696,2]
[354587988,1740583843982,-225.26862847,0.000248,3]
[354587990,1740583843991,-500.0,0.00024932,2]
[354587991,1740583844000,-112.35215106,0.00024932,2]
[354587992,1740583844020,-387.64784894,0.00024932,2]
[354587993,1740583844029,-500.0,0.00024932,2]
[354587994,1740583844038,-2000.0,0.00024932,4]
[354587995,1740583844048,-200.0,0.00024935,2]
[354587996,1740583844057,-18313.5858408,0.00025058,2]
[354587997,1740583844067,-12691.94963412,0.00025058,2]
[354587998,1740583844077,-22572.07026844,0.00025058,2]
[354587999,1740583844086,-1902.98464412,0.00025058,2]
[354588000,1740583844096,-182.29998136,0.00025058,2]
[354588001,1740583844106,-643.0,0.00025058,2]
[354588002,1740583844116,-960.98911459,0.00025058,2]
[354588003,1740583844126,-567.59427682,0.00025058,2]
[354588004,1740583844136,-1819.43919688,0.00025058,2]
[354588005,1740583844145,-3212.71535022,0.00025058,2]
[354588006,1740583844155,-173.72047959,0.00025058,2]
[354588007,1740583844164,-550.0,0.00025058,2]
[354588008,1740583844174,-1452.5615665,0.00025058,2]
[354588009,1740583844183,-998.51642915,0.00025058,2]
[354588010,1740583844192,-226.79295511,0.00025058,2]
[354588011,1740583844202,-172.11742275,0.00025058,2]
[354588012,1740583844212,-371.88803019,0.00025058,2]
[354588013,1740583844223,-1456.69463884,0.00025058,2]
[354588014,1740583844233,-1023.72680192,0.00025058,2]
[354588015,1740583844244,-557.80659803,0.00025058,2]
[354588016,1740583844254,-150.0,0.00025058,2]
[354588017,1740583844263,-601.33264226,0.00025058,2]
[354588018,1740583844273,-10097.900002,0.00025058,2]
[354588019,1740583844283,-620.35769349,0.00025058,2]
[354588020,1740583844292,-212.66295828,0.00025058,2]
[354588021,1740583844301,-445.72031688,0.00025058,2]
[354588022,1740583844311,-1057.57458314,0.00025058,2]
[354588023,1740583844320,-2500.0,0.00025058,2]
[354588024,1740583844330,-574.16863113,0.00025058,2]
[354588025,1740583844340,-339.1766848,0.00025058,2]
[354588026,1740583844349,-1100.0,0.00025058,2]
[354588027,1740583844359,-904.20170361,0.00025058,2]
[354588028,1740583844368,-477.32619415,0.00025058,2]
[354588029,1740583844378,-168.73100156,0.00025058,2]
[354588030,1740583844387,-227.55663375,0.00025058,2]
[354588031,1740583844397,-1572.03734947,0.00025058,2]
[354588032,1740583844406,-542.7339841,0.00025058,2]
[354588033,1740583844415,-1002.27436603,0.00025058,2]
[354588034,1740583844425,-361.37753726,0.00025058,2]
[354588035,1740583844435,-2184.81689549,0.00025058,2]
[354588036,1740583844444,-281.03352562,0.00025058,2]
[354588037,1740583844453,-14633.29705387,0.00025058,2]
[354588038,1740583844464,-1819.4112975,0.00025058,2]
[354588039,1740583844473,-13931.51243917,0.00025058,2]
[354588040,1740583844483,-218.22502689,0.00025058,2]
[354588041,1740583844492,-10099.46086925,0.00025058,2]
[354588042,1740583844501,-279.0,0.00025058,2]
[354588043,1740583844511,-1689.46554385,0.00025058,2]
[354588044,1740583844520,-200.79651752,0.00025058,2]
[354588045,1740583844530,-495.14685194,0.00025058,2]
[354588046,1740583844540,-279.9370964,0.00025058,2]
[354588047,1740583844549,-5628.02178865,0.00025058,2]
[354588048,1740583844559,-1003.20764001,0.00025058,2]
[354588049,1740583844569,-162.91,0.00025058,2]
[354588050,1740583844578,-573.61815755,0.0002599,2]
[354588051,1740583844587,-4433.65,0.00026,2]
[354588052,1740583844599,-516.26135796,0.000261,10]
[354588053,1740583844609,-518.89172062,0.000261,10]
[354588054,1740583844618,-2000.0,0.00026439,4]
[354588055,1740583844627,-194.78,0.00026849,2]
[354588056,1740583844637,-2533.77260863,0.00026962,2]
[354588057,1740583844647,-250.0,0.00027,2]
[354588058,1740583844657,-989.24578692,0.00027,2]
[354588059,1740583844668,-3509.9,0.00027123,2]
[354588060,1740583844678,-4029.78055866,0.00027146,2]
[354588061,1740583844688,-568.86887886,0.00027213,2]
[354588062,1740583844698,-242.93267845,0.00027337,2]
[354588063,1740583844708,-192.09761416,0.000275,2]
[354588064,1740583844718,-162.96,0.00027879,2]
[354588065,1740583844728,-2000.0,0.00027946,4]
[354588066,1740583844738,-1054.74617842,0.00028,2]
[354588067,1740583844748,-2468.41093273,0.00028,60]
[354588078,1740583846989,-361.59603012,0.00028,60]
[354588079,1740583847001,-1454.75724445,0.00028,60]
[354588080,1740583847010,-450.0,0.00028,120]
[354588081,1740583847020,-500.0,0.00028058,30]
[354588082,1740583847030,-500.0,0.00028058,30]
[354588083,1740583847039,-500.0,0.00028058,30]
[354588084,1740583847049,-510.34382167,0.00028058,30]
[354588085,1740583847059,-517.08489997,0.00028058,30]
[354588086,1740583847069,-2533.77260863,0.00029374,2]
[354588087,1740583847079,-2000.0,0.00029453,4]
[354588088,1740583847090,-4029.78055866,0.00029595,2]
[354588089,1740583847099,-2358.0,0.000299,2]
[354588090,1740583847108,-150.0,0.00029917,7]
[354588091,1740583847118,-5754.7804,0.0003,2]
[354588092,1740583847128,-1735.692592,0.0003,2]
[354588093,1740583847138,-450.0,0.0003,120]
[354588094,1740583847148,-210.0,0.0003,2]
[354588095,1740583847159,-1290.5,0.00030347,2]
[354588096,1740583847169,-633.77,0.00030352,2]
[354588097,1740583847179,-250.0,0.00030352,2]
[354588098,1740583847190,-633.77,0.0003056,2]
[354588099,1740583847202,-633.77,0.00030767,2]
[354588100,1740583847212,-3577.37,0.00030792,2]
[354588101,1740583847221,-5550.0,0.000308,3]
[354588102,1740583847231,-2000.0,0.00030959,4]
[354588103,1740583847240,-633.77,0.00030975,2]
[354588104,1740583847250,-183.17,0.00031074,2]
[354588105,1740583847260,-633.77,0.00031183,2]
[354588106,1740583847270,-150.0,0.00031252,2]
[354588107,1740583847280,-167.48,0.00031263,2]
[354588108,1740583847289,-633.77,0.0003139,2]
[354588109,1740583847299,-23900.0,0.00031394,2]
[354588110,1740583847309,-822.88,0.0003144,2]
[354588111,1740583847319,-1000.0,0.00031569,2]
[354588112,1740583847329,-1852.42,0.00031574,2]
[354588113,1740583847339,-633.77,0.00031598,2]
[354588114,1740583847348,-5550.0,0.000317,5]
[354588115,1740583847357,-1337.61,0.00031706,120]
[354588116,1740583847367,-895.71,0.00031706,120]
[354588117,1740583847376,-2533.77260863,0.00031786,2]
[354588118,1740583847385,-684.79,0.00031798,2]
[354588119,1740583847395,-633.77,0.00031806,2]
[354588120,1740583847404,-176.87,0.0003181,2]
[354588121,1740583847414,-2000.0,0.00031965,120]
[354588122,1740583847424,-633.77,0.00032013,2]
[354588123,1740583847434,-4029.78055866,0.00032044,2]
[354588124,1740583847443,-529.48,0.00032073,120]
[354588125,1740583847454,-1485.72,0.00032079,2]
[354588126,1740583847466,-633.77,0.00032221,2]
[354588127,1740583847476,-224.16,0.00032244,30]
[354588128,1740583847486,-533.66,0.0003226,2]
[354588129,1740583847495,-633.77,0.00032429,2]
[354588130,1740583847505,-2000.0,0.00032466,4]
[354588131,1740583847516,-150.0,0.00032595,2]
[354588132,1740583847525,-1290.5,0.00032611,2]
[354588133,1740583847535,-572.55,0.00032631,2]
[354588134,1740583847544,-633.77,0.00032636,2]
[354588135,1740583847554,-194.78,0.00032646,2]
[354588136,1740583847564,-4609.41363228,0.000328,2]
[354588137,1740583847573,-183.17,0.000328,2]
[354588138,1740583847584,-633.77,0.00032844,2]
[354588139,1740583847594,-328.22,0.00032877,2]
[354588140,1740583847605,-200.0,0.00032905,2]
[354588141,1740583847614,-167.48,0.00032983,2]
[354588142,1740583847624,-242.93267845,0.00032994,5]
[354588143,1740583847634,-500.0,0.00033,15]
[354588144,1740583847643,-210.0,0.00033,2]
[354588145,1740583847653,-633.77,0.00033052,2]
[354588146,1740583847662,-207.28618238,0.00033198,2]
[354588147,1740583847673,-324.24257761,0.00033247,2]
[354588148,1740583847683,-633.77,0.00033259,2]
[354588149,1740583847692,-633.77,0.00033467,2]
[354588150,1740583847701,-633.77,0.00033675,2]
[354588151,1740583847712,-633.77,0.00033882,2]
[354588152,1740583847722,-1524.01941172,0.00033973,4]
[354588153,1740583847734,-475.98058828,0.00033973,4]
[354588154,1740583847744,-1002.32733455,0.00034,2]
[354588155,1740583847753,-222.77784629,0.00034,2]
[354588156,1740583847763,-633.77,0.0003409,2]
[354588157,1740583847774,-2533.77260863,0.00034199,2]
[354588158,1740583847786,-633.77,0.00034298,2]
[354588159,1740583847796,-3131.31661165,0.00034493,2]
[354588160,1740583848628,-483.862,0.00034493,2]
[354588161,1740583848640,-378.6719402,0.00034493,2]
[354588162,1740583848651,-35.93000681,0.00034493,2]
[354588163,1740583848662,-183.17,0.00034527,2]
[354588164,1740583848671,-422.11544357,0.00034657,2]
[354588165,1740583848681,-167.48,0.00034703,2]
[354588166,1740583848691,-167.72,0.00034849,2]
[354588167,1740583848700,-1000.0,0.00034849,2]
[354588168,1740583848712,-4026.39,0.00034849,2]
[354588169,1740583848721,-1290.5,0.00034875,2]
[354588170,1740583848731,-422.11544357,0.00034925,2]
[354588171,1740583848740,-250.31,0.00034999,2]
[354588172,1740583848749,-244.18,0.00034999,2]
[354588173,1740583848759,-1196.59458168,0.00035,2]
[354588174,1740583848769,-225.41343754,0.00035,2]
[354588175,1740583848779,-201.02,0.00035082,2]
[354588176,1740583848794,-13222.63,0.00035128,2]
[354588177,1740583848803,-7080.07,0.00035257,2]
[354588178,1740583848813,-422.11544357,0.0003531,2]
[354588179,1740583848823,-422.11544357,0.00035458,2]
[354588180,1740583848832,-2000.0,0.0003548,4]
[354588181,1740583848842,-7654.80343956,0.000355,15]
[354588182,1740583848852,-300.0,0.000355,12]
[354588183,1740583848863,-1000.0,0.00035515,2]
[354588184,1740583848872,-700.0,0.000356,12]
[354588185,1740583848883,-988.63,0.00035616,14]
[354588186,1740583848893,-506.48589436,0.00035616,14]
[354588187,1740583848903,-1627.74,0.00035616,14]
[354588188,1740583848912,-500.0,0.00035616,14]
[354588189,1740583848922,-500.0,0.00035616,14]
[354588190,1740583848931,-500.0,0.00035616,14]
[354588191,1740583848941,-500.0,0.00035616,14]
[354588192,1740583848951,-500.0,0.00035616,14]
[354588193,1740583848963,-1185.51,0.00035616,14]
[354588194,1740583848973,-500.0,0.00035616,14]
[354588195,1740583848982,-566.57,0.00035616,14]
[354588196,1740583848992,-1306.77,0.00035616,14]
[354588197,1740583849002,-500.0,0.00035616,14]
[354588198,1740583849012,-1034.89,0.00035616,14]
[354588199,1740583849021,-500.0,0.00035616,14]
[354588200,1740583849030,-624.88954738,0.00035616,14]
[354588201,1740583849039,-500.0,0.00035616,14]
[354588202,1740583849049,-500.0,0.00035616,14]
[354588203,1740583849058,-541.92,0.00035616,14]
[354588204,1740583849066,-500.0,0.00035616,14]
[354588205,1740583849075,-951.2,0.00035616,14]
[354588206,1740583849083,-1156.89,0.00035616,14]
[354588207,1740583849091,-255.20690952,0.00035616,14]
[354588208,1740583849100,-1383.89,0.00035616,14]
[354588209,1740583849110,-1743.77,0.00035616,14]
[354588210,1740583849120,-500.0,0.00035616,14]
[354588211,1740583849129,-1566.85,0.00035616,14]
[354588212,1740583849138,-1187.59,0.00035616,14]
[354588213,1740583849147,-502.15232789,0.00035616,14]
[354588214,1740583849157,-500.0,0.00035616,14]
[354588215,1740583849167,-1188.16,0.00035616,14]
[354588216,1740583849176,-500.0,0.00035616,14]
[354588217,1740583849186,-632.61,0.00035616,14]
[354588218,1740583849196,-500.0,0.00035616,14]
[354588219,1740583849206,-554.8,0.00035616,14]
[354588220,1740583849218,-500.0,0.00035616,14]
[354588221,1740583849229,-1360.68,0.00035616,14]
[354588222,1740583849239,-282.5184322,0.00035616,14]
[354588223,1740583849251,-508.03380309,0.00035616,14]
[354588224,1740583849263,-1852.88,0.00035616,14]
[354588225,1740583849274,-1975.62,0.00035616,14]
[354588226,1740583849284,-1047.77,0.00035616,14]
[354588227,1740583849295,-210.5014091,0.00035616,14]
[354588228,1740583849307,-500.0,0.00035616,14]
[354588229,1740583849317,-500.0,0.00035616,14]
[354588230,1740583849327,-500.0,0.00035616,14]
[354588231,1740583849338,-802.71,0.00035616,14]
[354588232,1740583849348,-2436.25,0.00035616,14]
[354588233,1740583849358,-601.38,0.00035616,14]
[354588234,1740583849367,-392.51554355,0.00035616,14]
[354588235,1740583849377,-500.0,0.00035616,14]
[354588236,1740583849387,-1607.32,0.00035616,14]
[354588237,1740583849397,-500.0,0.00035616,14]
[354588238,1740583849407,-540.46976453,0.00035616,14]
[354588239,1740583849417,-925.77,0.00035616,14]
[354588240,1740583849426,-500.0,0.00035616,14]
[354588241,1740583849436,-1439.89,0.00035616,14]
[354588242,1740583849446,-501.60573678,0.00035616,14]
[354588243,1740583849455,-500.0,0.00035616,14]
[354588244,1740583849464,-500.0,0.00035616,14]
[354588245,1740583849474,-527.13064871,0.00035616,14]
[354588246,1740583849483,-1478.49,0.00035616,14]
[354588247,1740583849493,-500.0,0.00035616,14]
[354588248,1740583849502,-897.41,0.00035616,14]
[354588249,1740583849512,-259.55928313,0.00035616,14]
[354588250,1740583849522,-500.0,0.00035616,14]
[354588251,1740583849532,-506.57233409,0.00035616,14]
[354588252,1740583849541,-506.29107573,0.00035616,14]
[354588253,1740583849551,-500.0,0.00035616,14]
[354588254,1740583849561,-1208.2,0.00035616,14]
[354588255,1740583849571,-883.97,0.00035616,14]
[354588256,1740583849580,-500.0,0.00035616,14]
[354588257,1740583849589,-547.41,0.00035616,14]
[354588258,1740583849599,-651.02,0.00035616,14]
[354588259,1740583849609,-500.0,0.00035616,14]
[354588260,1740583849619,-1500.01,0.00035616,14]
[354588261,1740583849629,-847.05,0.00035616,14]
[354588262,1740583849639,-500.0,0.00035616,14]
[354588263,1740583849648,-878.42,0.00035616,14]
[354588264,1740583849658,-614.90147282,0.00035616,14]
[354588265,1740583849668,-1978.19,0.00035616,14]
[354588266,1740583849678,-500.0,0.00035616,14]
[354588267,1740583849687,-500.0,0.00035616,14]
[354588268,1740583849698,-912.71,0.00035616,14]
[354588269,1740583849707,-846.89,0.00035616,14]
[354588270,1740583849719,-500.0,0.00035616,14]
[354588271,1740583849729,-1212.66,0.00035616,14]
[354588272,1740583849740,-1111.48,0.00035616,14]
[354588273,1740583849750,-500.0,0.00035616,14]
[354588274,1740583849760,-500.0,0.00035616,14]
[354588275,1740583849770,-500.0,0.00035616,14]
[354588276,1740583849782,-547.7,0.00035616,14]
[354588277,1740583849793,-773.08,0.00035616,14]
[354588278,1740583849807,-508.73,0.00035616,14]
[354588279,1740583849819,-157.238969,0.00035616,14]
[354588280,1740583849830,-1077.97,0.00035616,14]
[354588281,1740583849843,-672.27,0.00035616,14]
[354588282,1740583849855,-753.04,0.00035616,14]
[354588283,1740583849865,-852.52,0.00035616,14]
[354588284,1740583849880,-701.859004,0.00035616,14]
[354588285,1740583849891,-500.0,0.00035616,14]
[354588286,1740583849903,-1319.73,0.00035616,14]
[354588287,1740583849915,-500.68050751,0.00035616,14]
[354588288,1740583849927,-1366.54,0.00035616,14]
[354588289,1740583849938,-650.34,0.00035616,14]
[354588290,1740583849949,-854.4,0.00035616,14]
[354588291,1740583849959,-1937.2,0.00035616,14]
[354588292,1740583849970,-500.0,0.00035616,14]
[354588293,1740583849981,-500.0,0.00035616,14]
[354588294,1740583849991,-1635.002665,0.00035616,14]
[354588295,1740583850002,-500.31939371,0.00035616,14]
[354588296,1740583850012,-554.11,0.00035616,14]
[354588297,1740583850022,-500.0,0.00035616,14]
[354588298,1740583850034,-561.73566378,0.00035616,14]
[354588299,1740583850044,-500.0,0.00035616,14]
[354588300,1740583850055,-500.0,0.00035616,14]
[354588301,1740583850064,-598.08938879,0.00035616,14]
[354588302,1740583850075,-500.0,0.00035616,14]
[354588303,1740583850086,-1403.7,0.00035616,14]
[354588304,1740583850096,-500.0,0.00035616,14]
[354588305,1740583850106,-1190.88,0.00035616,14]
[354588306,1740583850116,-550.81861877,0.00035616,14]
[354588307,1740583850137,-116.88138123,0.00035616,14]
[354588308,1740583850147,-500.0,0.00035616,14]
[354588309,1740583850157,-515.84,0.00035616,14]
[354588310,1740583850167,-650.73873877,0.00035616,14]
[354588311,1740583850181,-577.54286652,0.00035616,14]
[354588312,1740583890034,468.0,0.000224,120]
[354588327,1740585031577,-574.48039059,0.000174,2]
[354588328,1740585031587,-250.0,0.0001745,2]
[354588329,1740585031597,-150.0,0.0001745,2]
[354588330,1740585031606,-590.97569905,0.000175,2]
[354588331,1740585031713,-1283.02430095,0.000175,2]
[354588332,1740585031723,-181.76781368,0.000175,2]
[354588333,1740585031733,-602.5635254,0.00017938,2]
[354588334,1740585031745,-407.12331822,0.00017938,2]
[354588335,1740585031756,-250.0,0.00018335,2]
[354588336,1740585031766,-150.0,0.00018335,2]
[354588337,1740585031776,-232.08463619,0.0001914,2]
[354588338,1740585031790,-17.91536381,0.0001914,2]
[354588339,1740585031800,-150.0,0.0001914,2]
[354588340,1740585031811,-250.0,0.00021,2]
[354588341,1740585031821,-150.0,0.00021479,2]
[354588342,1740585031831,-300.0,0.00023,2]
[354588343,1740585031842,-78.07463619,0.00023625,2]
[354588344,1740585031855,-84.88536381,0.00023625,2]
[354588345,1740585031867,-241.11463619,0.00023687,2]
[354588346,1740585031880,-58.88536381,0.00023687,2]
[354588347,1740585031891,-191.11463619,0.00023688,5]
[354588348,1740585031917,-277.9276,0.00023688,5]
[354588349,1740585031929,-30.95776381,0.00023688,5]
[354588350,1740585031939,-500.0,0.00023788,2]
[354588351,1740585031950,-500.0,0.00023888,6]
[354588352,1740585031962,-500.0,0.00023988,7]
[354588353,1740585031972,-500.0,0.00024088,4]
[354588354,1740585031981,-500.0,0.00024188,4]
[354588355,1740585031991,-500.0,0.00024288,4]
[354588357,1740585032001,-500.0,0.00024388,6]
[354588359,1740585032011,-500.0,0.00024488,4]
[354588361,1740585032022,-500.0,0.00024588,4]
[354588363,1740585032032,-500.0,0.00024688,2]
[354588365,1740585032041,-500.0,0.00024788,2]
[354588367,1740585032052,-500.0,0.00024888,7]
[354588369,1740585032061,-213.47317388,0.000249,4]
[354588371,1740585032071,-660.0,0.000249,2]
[354588373,1740585032081,-500.0,0.00024988,6]
[354588375,1740585032090,-350.0,0.00025,2]
[354588377,1740585032100,-518.42,0.00025088,6]
[354588379,1740585032110,-300.0,0.000254,120]
[354588381,1740585032120,-420.0,0.00025695,2]
[354588384,1740585032130,-175.19,0.00026849,2]
[354588386,1740585032139,-400.0,0.00027,2]
[354588388,1740585032149,-1132.57,0.00027373,2]
[354588390,1740585032158,-200.0,0.00027763,2]
[354588391,1740585032168,-587.0,0.00027874,2]
[354588394,1740585032178,-150.0,0.00028027,2]
[354588396,1740585032188,-1000.0,0.00028614,2]
[354588399,1740585032200,-1194.27,0.00028623,2]
[354588402,1740585032209,-150.0,0.00028633,7]
[354588404,1740585032219,-1000.0,0.00028704,2]
[354588407,1740585032228,-17940.47,0.00028722,2]
[354588411,1740585032238,-176.87,0.00028724,2]
[354588412,1740585032249,-557.83246992,0.00028974,2]
[354588413,1740585032258,-450.0,0.00029,2]
[354588415,1740585032270,-855.03,0.00029021,120]
[354588417,1740585032281,-2725.25,0.00029074,2]
[354588419,1740585032291,-2000.0,0.00029289,120]
[354588421,1740585032300,-164.83,0.0002939,2]
[354588423,1740585032309,-1132.57,0.00029636,2]
[354588425,1740585032319,-863.66,0.0002971,2]
[354588427,1740585032329,-250.0,0.0002971,2]
[354588429,1740585032338,-164.83,0.00029935,2]
[354588431,1740585032348,-823.0,0.00030238,2]
[354588433,1740585032357,-164.83,0.00030481,2]
[354588434,1740585032367,-200.0,0.00030547,2]
[354588435,1740585032377,-444.71,0.00030767,2]
[354588436,1740585032387,-164.83,0.00031027,2]
[354588437,1740585032396,-218.34,0.00031038,30]
[354588438,1740585032406,-164.83,0.00031573,2]
[354588439,1740585032416,-494.24,0.00031704,2]
[354588440,1740585032425,-1132.57,0.000319,2]
[354588441,1740585032435,-164.83,0.00032119,2]
[354588442,1740585032445,-1000.0,0.0003219,2]
[354588443,1740585032454,-855.03,0.00032649,120]
[354588444,1740585032468,-164.83,0.00032664,2]